lending/lending_fUSD_20260317
["ID","MTS","AMOUNT","RATE_DAILY","PERIOD"]
[408499549,1773765042063,-8812.4127333,0.00017806,2]
[408499550,1773765042072,-800.0,0.00017808,2]
[408499551,1773765042082,-589.4009195,0.00017822,2]
[408499552,1773765042091,-589.4009195,0.00017861,2]
[408499553,1773765042102,-500.0,0.00017899,2]
[408499554,1773765042112,-3340.80904271,0.000179,2]
[408499555,1773765042123,-186.3830914,0.000179,2]
[408499556,1773765042132,-166.75988284,0.000179,2]
[408499557,1773765042141,-455.2593543,0.000179,2]
[408499558,1773765042150,-589.4009195,0.000179,2]
[408499559,1773765042160,-400.0,0.0001797,2]
[408499560,1773765042170,-400.0,0.0001797,2]
[408499561,1773765042179,-451.15996436,0.0001797,2]
[408499562,1773765042188,-400.0,0.0001797,2]
[408499563,1773765042198,-400.0,0.0001797,2]
[408499564,1773765042208,-358.87803777,0.0001799,2]
[408499565,1773765042218,-358.87803777,0.0001799,2]
[408499566,1773765042227,-155.0,0.00017999,2]
[408499567,1773765042237,-300.0,0.00017999,2]
[408499568,1773765042247,-500.0,0.00017999,2]
[408499569,1773765042256,-500.0,0.00017999,2]
[408499570,1773765042265,-500.0,0.00017999,2]
[408499571,1773765042275,-500.0,0.00017999,2]
[408499572,1773765042284,-500.0,0.00017999,2]
[408499573,1773765042293,-500.0,0.00017999,2]
[408499574,1773765042303,-500.0,0.00017999,2]
[408499575,1773765042312,-500.0,0.00017999,2]
[408499576,1773765042321,-500.0,0.00017999,2]
[408499577,1773765042330,-500.0,0.00017999,2]
[408499578,1773765042339,-500.0,0.00017999,2]
[408499579,1773765042348,-500.0,0.00017999,2]
[408499580,1773765042357,-500.0,0.00017999,2]
[408499581,1773765042367,-492.88905965,0.00017999,2]
[408499582,1773765042377,-300.0,0.00017999,2]
[408499583,1773765042386,-666.0,0.00017999,2]
[408499584,1773765042395,-775590.32781338,0.00018,2]
[408499585,1773765042404,-9738.52183098,0.00018,5]
[408499586,1773765042413,-100321.46948296,0.00018,2]
[408499587,1773765042422,-2023423.65793615,0.00018,2]
[408499588,1773765042439,-305.11934148,0.00018,2]
[408499589,1773765042460,-3597.6,0.00018,2]
[408499596,1773765043395,-2098.72357344,0.00015847,2]
[408499597,1773765043511,-923.83802009,0.00015847,2]
[408499598,1773765043521,-62.22246494,0.00018,2]
[408499599,1773765043711,-514.15042203,0.00018,2]
[408499600,1773765043744,-1139.33803329,0.00018,2]
[408499601,1773765043766,-2183.27993752,0.00018,2]
[408499602,1773765043778,-2384.0811772,0.00018,2]
[408499611,1773765046258,-1620.66192896,0.00018,2]
[408499612,1773765046270,-863.29130345,0.00018,2]
[408499613,1773765046282,-4406.12723286,0.00018,2]
[408499614,1773765046292,-41503.89060164,0.00018,2]
[408499615,1773765046303,-36514.93930294,0.00018,2]
[408499616,1773765046314,-350.88499915,0.00018,2]
[408499617,1773765046619,-154.81,0.00017646,2]
[408499618,1773765046629,-34472.07184264,0.00018,2]
[408499619,1773765046640,-316.53256464,0.00018,2]
[408499622,1773765095116,4034.37,0.0003,120]
[408499623,1773765489072,200.83717129,0.0003,120]
[408499624,1773765569019,191.0,0.0003,120]
[408499625,1773765879486,835.19023556,0.0003287,120]
[408499626,1773765880244,166.17115964,0.0003,120]
[408499627,1773765938094,2000.0,0.0003,120]
[408499628,1773766073446,45602.25238687,0.00032876,120]
[408499629,1773766094472,200.0,0.0003,120]
[408499630,1773766231397,-150.0,0.0001296,2]
[408499631,1773766231408,-300.0,0.0001296,2]
[408499632,1773766231418,-519.80549567,0.0001296,2]
[408499633,1773766231430,-680.19450433,0.0001296,2]
[408499634,1773766231440,-500.0,0.00012961,2]
[408499635,1773766231450,-1752.13,0.00012961,2]
[408499637,1773766231460,-150.0,0.00012961,2]
[408499639,1773766231470,-8040.86095806,0.00012961,2]
[408499684,1773766237507,-719.17,0.00012961,2]
[408499685,1773766237615,-2024.0807559,0.00012961,2]
[408499686,1773766237627,-1260.37898383,0.00012961,2]
[408499687,1773766237639,-1164.72930221,0.00012961,2]
[408499688,1773766237650,-200.0,0.00012961,2]
[408499689,1773766237659,-595.44065791,0.00013425,2]
[408499690,1773766237671,-2644.55934209,0.00013425,2]
[408499691,1773766237681,-155280.03287386,0.00013904,2]
[408499692,1773766237693,-915.68180285,0.00013904,2]
[408499714,1773766239766,-227643.95442329,0.00013904,2]
[408499715,1773766239776,-500.0,0.00013937,2]
[408499716,1773766239785,-503.39079718,0.00013973,2]
[408499717,1773766239794,-500.0,0.00013973,2]
[408499718,1773766239804,-168.99330662,0.00013973,2]
[408499719,1773766239813,-500.0,0.00013973,2]
[408499720,1773766239823,-500.0,0.00013973,2]
[408499721,1773766239832,-500.0,0.00013973,2]
[408499722,1773766239842,-500.0,0.00013973,2]
[408499723,1773766239852,-200.0,0.00014004,2]
[408499724,1773766239863,-1557.9,0.00014004,2]
[408499725,1773766239872,-9219.59,0.00014004,2]
[408499726,1773766239882,-166.66,0.00014037,2]
[408499727,1773766239891,-255.0,0.00014062,2]
[408499728,1773766239901,-420.0,0.00014214,2]
[408499729,1773766239910,-1680.0,0.00014256,2]
[408499730,1773766239920,-195.0,0.00014256,2]
[408499731,1773766239930,-600.0,0.00014256,2]
[408499732,1773766239940,-600.0,0.00014256,2]
[408499733,1773766239949,-600.0,0.00014256,2]
[408499734,1773766239959,-600.0,0.00014256,2]
[408499735,1773766239968,-600.0,0.00014256,2]
[408499736,1773766239978,-300.0,0.00014256,2]
[408499737,1773766239988,-300.0,0.00014256,2]
[408499738,1773766239997,-300.0,0.00014256,2]
[408499739,1773766240007,-300.0,0.00014256,2]
[408499740,1773766240016,-300.0,0.00014256,2]
[408499741,1773766240027,-1801.528,0.000145,2]
[408499742,1773766240037,-166.66,0.000145,2]
[408499743,1773766240046,-1000.0,0.00014521,2]
[408499744,1773766240056,-405.11428651,0.000146,2]
[408499745,1773766240068,-920.74780319,0.000146,2]
[408499746,1773766240077,-811.93613591,0.000146,2]
[408499747,1773766240087,-895.0357959,0.000146,2]
[408499748,1773766240097,-256.28416197,0.000146,2]
[408499749,1773766240109,-200.0,0.000146,5]
[408499750,1773766240125,-929.37600956,0.00014603,2]
[408499751,1773766240135,-1120.9195,0.00014608,2]
[408499752,1773766240145,-32966.233,0.00014609,2]
[408499753,1773766240155,-1000.0,0.00014609,2]
[408499754,1773766240164,-5000.0,0.00014609,2]
[408499755,1773766240174,-2500.0,0.00014609,2]
[408499756,1773766240184,-5845.32104008,0.00014619,2]
[408499757,1773766240193,-403.90095966,0.00014619,2]
[408499758,1773766240203,-1612.94304812,0.00014671,2]
[408499759,1773766240212,-9765.61791214,0.00014673,2]
[408499760,1773766240223,-3857.28668402,0.00014673,2]
[408499761,1773766240232,-400.0,0.000147,5]
[408499762,1773766240243,-151.0,0.000147,2]
[408499763,1773766240252,-151.0,0.000147,2]
[408499764,1773766240262,-151.0,0.000147,2]
[408499765,1773766240271,-151.0,0.000147,2]
[408499766,1773766240281,-204.0271073,0.000147,2]
[408499767,1773766240290,-200.0,0.000147,2]
[408499768,1773766240300,-1557.9,0.00014704,2]
[408499769,1773766240309,-655.02922425,0.00014705,2]
[408499770,1773766240320,-151.0,0.00014706,2]
[408499771,1773766240329,-1010.03678902,0.00014708,5]
[408499772,1773766240339,-1010.03678902,0.00014708,5]
[408499773,1773766240350,-1010.03678902,0.00014708,5]
[408499774,1773766240359,-1010.03678902,0.00014708,5]
[408499775,1773766240525,-500.0,0.00014708,2]
[408499776,1773766240543,-500.0,0.00014708,2]
[408499777,1773766240553,-500.0,0.00014708,2]
[408499778,1773766240563,-500.0,0.00014708,2]
[408499779,1773766240574,-500.0,0.00014708,2]
[408499780,1773766240584,-500.0,0.00014708,2]
[408499781,1773766240593,-500.0,0.00014708,2]
[408499782,1773766240603,-500.0,0.00014708,2]
[408499783,1773766240612,-500.0,0.00014708,2]
[408499784,1773766240621,-500.0,0.00014708,2]
[408499785,1773766240630,-500.0,0.00014708,2]
[408499786,1773766240639,-500.0,0.00014708,2]
[408499787,1773766240649,-500.0,0.00014708,2]
[408499788,1773766240658,-500.0,0.00014708,2]
[408499789,1773766240668,-500.0,0.00014708,2]
[408499790,1773766240677,-500.0,0.00014708,2]
[408499791,1773766240686,-500.0,0.00014708,2]
[408499792,1773766240696,-500.0,0.00014708,2]
[408499793,1773766240705,-500.0,0.00014708,2]
[408499794,1773766240715,-500.0,0.00014708,2]
[408499795,1773766240724,-500.0,0.00014708,2]
[408499796,1773766240733,-500.0,0.00014708,2]
[408499797,1773766240742,-500.0,0.00014708,2]
[408499798,1773766240752,-500.0,0.00014708,2]
[408499799,1773766240761,-500.0,0.00014708,2]
[408499800,1773766240770,-500.0,0.00014708,2]
[408499801,1773766240780,-500.0,0.00014708,2]
[408499802,1773766240789,-500.0,0.00014708,2]
[408499803,1773766240799,-500.0,0.00014708,2]
[408499804,1773766240808,-500.0,0.00014708,2]
[408499805,1773766240817,-500.0,0.00014708,2]
[408499806,1773766240827,-500.0,0.00014708,2]
[408499807,1773766240836,-500.0,0.00014708,2]
[408499808,1773766240845,-500.0,0.00014708,2]
[408499809,1773766240855,-500.0,0.00014708,2]
[408499810,1773766240864,-500.0,0.00014708,2]
[408499811,1773766240874,-500.0,0.00014708,2]
[408499812,1773766240884,-524.24576923,0.00014708,2]
[408499813,1773766240894,-500.0,0.00014708,2]
[408499814,1773766240903,-500.0,0.00014708,2]
[408499815,1773766240912,-500.0,0.00014708,2]
[408499816,1773766240922,-500.0,0.00014708,2]
[408499817,1773766240931,-505.11042476,0.00014708,2]
[408499818,1773766240941,-500.0,0.00014708,2]
[408499819,1773766240952,-500.0,0.00014708,2]
[408499820,1773766240961,-500.0,0.00014708,2]
[408499821,1773766240972,-500.0,0.00014708,2]
[408499822,1773766240981,-500.0,0.00014708,2]
[408499823,1773766240990,-500.0,0.00014708,2]
[408499824,1773766240999,-500.0,0.00014708,2]
[408499825,1773766241008,-502.29808326,0.00014708,2]
[408499826,1773766241018,-376.9471188,0.00014708,2]
[408499827,1773766241027,-500.0,0.00014708,2]
[408499828,1773766241036,-500.0,0.00014708,2]
[408499829,1773766241045,-500.0,0.00014708,2]
[408499830,1773766241055,-500.0,0.00014708,2]
[408499831,1773766241065,-500.0,0.00014708,2]
[408499832,1773766241077,-500.0,0.00014708,2]
[408499833,1773766241086,-500.0,0.00014708,2]
[408499834,1773766241095,-500.0,0.00014708,2]
[408499835,1773766241104,-500.0,0.00014708,2]
[408499836,1773766241115,-500.0,0.00014708,2]
[408499837,1773766241124,-500.0,0.00014708,2]
[408499838,1773766241133,-500.0,0.00014708,2]
[408499839,1773766241142,-500.0,0.00014708,2]
[408499840,1773766241154,-500.0,0.00014708,2]
[408499841,1773766241164,-500.0,0.00014708,2]
[408499842,1773766241174,-500.0,0.00014708,2]
[408499843,1773766241183,-500.0,0.00014708,2]
[408499844,1773766241192,-500.0,0.00014708,2]
[408499845,1773766241201,-500.0,0.00014708,2]
[408499846,1773766241210,-500.0,0.00014708,2]
[408499847,1773766241220,-500.0,0.00014708,2]
[408499848,1773766241229,-500.0,0.00014708,2]
[408499849,1773766241238,-500.0,0.00014708,2]
[408499850,1773766241248,-500.0,0.00014708,2]
[408499851,1773766241258,-500.0,0.00014708,2]
[408499852,1773766241267,-500.0,0.00014708,2]
[408499853,1773766241277,-500.0,0.00014708,2]
[408499854,1773766241286,-500.0,0.00014708,2]
[408499855,1773766241295,-500.0,0.00014708,2]
[408499856,1773766241305,-500.0,0.00014708,2]
[408499857,1773766241314,-500.0,0.00014708,2]
[408499858,1773766241324,-500.0,0.00014708,2]
[408499859,1773766241333,-500.0,0.00014708,2]
[408499860,1773766241342,-500.0,0.00014708,2]
[408499861,1773766241351,-500.0,0.00014708,2]
[408499862,1773766241361,-500.0,0.00014708,2]
[408499863,1773766241370,-500.0,0.00014708,2]
[408499864,1773766241380,-500.0,0.00014708,2]
[408499865,1773766241390,-500.0,0.00014708,2]
[408499866,1773766241401,-500.0,0.00014708,2]
[408499867,1773766241410,-500.0,0.00014708,2]
[408499868,1773766241420,-500.0,0.00014708,2]
[408499869,1773766241429,-500.0,0.00014708,2]
[408499870,1773766241438,-500.0,0.00014708,2]
[408499871,1773766241447,-500.0,0.00014708,2]
[408499872,1773766241457,-500.0,0.00014708,2]
[408499873,1773766241467,-500.0,0.00014708,2]
[408499874,1773766241477,-500.0,0.00014708,2]
[408499875,1773766241486,-500.0,0.00014708,2]
[408499876,1773766241496,-500.0,0.00014708,2]
[408499877,1773766241505,-500.0,0.00014708,2]
[408499878,1773766241514,-500.0,0.00014708,2]
[408499879,1773766241523,-581.59402455,0.00014708,2]
[408499880,1773766241532,-500.0,0.00014708,2]
[408499881,1773766241542,-500.0,0.00014708,2]
[408499882,1773766241551,-500.0,0.00014708,2]
[408499883,1773766241561,-500.0,0.00014708,2]
[408499884,1773766241570,-174.4771549,0.00014708,2]
[408499885,1773766241579,-500.0,0.00014708,2]
[408499886,1773766241589,-500.0,0.00014708,2]
[408499887,1773766241599,-500.0,0.00014708,2]
[408499888,1773766241608,-181.50619502,0.00014708,2]
[408499889,1773766241618,-500.0,0.00014708,2]
[408499890,1773766241628,-500.0,0.00014708,2]
[408499891,1773766241638,-552.06547887,0.00014708,2]
[408499892,1773766241647,-500.0,0.00014708,2]
[408499893,1773766241657,-277.73520597,0.00014708,2]
[408499894,1773766241668,-500.0,0.00014773,2]
[408499895,1773766241677,-500.0,0.00014773,2]
[408499896,1773766241687,-502.27112461,0.00014773,2]
[408499897,1773766241697,-500.0,0.00014773,2]
[408499898,1773766241707,-500.0,0.00014773,2]
[408499899,1773766241717,-1118.44929219,0.00014775,2]
[408499900,1773766241726,-789.24254081,0.000148,2]
[408499901,1773766241736,-600.0,0.000148,5]
[408499902,1773766241748,-1061.74023569,0.00014809,2]
[408499903,1773766241758,-151.0,0.00014816,2]
[408499904,1773766241767,-151.0,0.00014816,2]
[408499905,1773766241776,-726.4646336,0.00014818,2]
[408499906,1773766241787,-666.0,0.00014818,2]
[408499907,1773766241797,-1010.03678903,0.00014818,5]
[408499908,1773766241807,-500.0,0.00014818,2]
[408499909,1773766241817,-500.0,0.00014818,2]
[408499910,1773766241826,-280.69488742,0.00014818,2]
[408499911,1773766241836,-500.0,0.00014818,2]
[408499912,1773766241846,-500.0,0.00014818,2]
[408499913,1773766241855,-500.0,0.00014818,2]
[408499914,1773766241864,-500.0,0.00014818,2]
[408499915,1773766241873,-500.0,0.00014818,2]
[408499916,1773766241883,-325.77326669,0.00014818,2]
[408499917,1773766241893,-1188173.9883,0.00014819,2]
[408499918,1773766241903,-500.0,0.00014873,2]
[408499919,1773766241913,-900.0,0.000149,5]
[408499920,1773766241922,-500.0,0.00014919,2]
[408499921,1773766241932,-288.68534246,0.00014919,2]
[408499922,1773766241941,-500.0,0.00014919,2]
[408499923,1773766241951,-521.59387392,0.00014919,2]
[408499924,1773766241960,-500.0,0.00014919,2]
[408499925,1773766241970,-500.0,0.00014919,2]
[408499926,1773766241979,-500.0,0.00014919,2]
[408499927,1773766241989,-500.0,0.00014919,2]
[408499928,1773766241998,-500.0,0.00014919,2]
[408499929,1773766242008,-511.1229767,0.00014919,2]
[408499930,1773766242017,-166.66,0.00014964,2]
[408499931,1773766242027,-5845.32104005,0.00014984,2]
[408499932,1773766242037,-250.0,0.00015,2]
[408499933,1773766242046,-340.01126898,0.00015026,2]
[408499934,1773766242056,-9765.61791208,0.00015032,2]
[408499935,1773766242072,-846.23796232,0.0001521,2]
[408499936,1773766242082,-433.0,0.00015254,2]
[408499937,1773766242093,-9999.99,0.0001531,2]
[408499938,1773766242103,-150.99,0.0001531,2]
[408499939,1773766242114,-56401.57,0.0001531,2]
[408499940,1773766242124,-999.99,0.0001531,2]
[408499941,1773766242134,-9999.99,0.0001531,2]
[408499942,1773766242146,-150.99,0.0001531,2]
[408499943,1773766242155,-500.0,0.00015321,2]
[408499944,1773766242165,-5845.32104005,0.00015348,2]
[408499945,1773766242176,-9765.61791208,0.0001539,2]
[408499946,1773766242185,-1557.9,0.00015404,2]
[408499947,1773766242195,-1000.0,0.00015421,2]
[408499948,1773766242205,-166.66,0.00015427,2]
[408499949,1773766242214,-403.90095964,0.00015499,2]
[408499950,1773766242224,-587.0,0.00015588,2]
[408499951,1773766242233,-2351.0,0.00015682,2]
[408499952,1773766242243,-5845.32104005,0.00015713,2]
[408499953,1773766242253,-9765.61791208,0.00015749,2]
[408499955,1773766242262,-166.66,0.0001589,2]
[408499956,1773766242271,-500.0,0.0001596,2]
[408499957,1773766242281,-1500.0,0.00015968,2]
[408499959,1773766242291,-289.64487035,0.00016,2]
[408499961,1773766242300,-5845.32104005,0.00016077,2]
[408499962,1773766242310,-500.0,0.000161,2]
[408499963,1773766242319,-500.0,0.000161,2]
[408499964,1773766242329,-160.10164631,0.000161,2]
[408499965,1773766242338,-998.0,0.000161,2]
[408499967,1773766242360,-289.64487035,0.000161,2]
[408499968,1773766242371,-1557.9,0.00016105,2]
[408499969,1773766242382,-9765.61791208,0.00016107,2]
[408499970,1773766242393,-13682.15,0.00016116,2]
[408499971,1773766242403,-14807.5,0.00016116,2]
[408499972,1773766242412,-9999.99,0.00016116,2]
[408499973,1773766242422,-620.0,0.00016319,2]
[408499974,1773766242433,-1044.0,0.00016319,2]
[408499976,1773766242442,-3511.0,0.00016319,2]
[408499978,1773766242452,-1260.0,0.00016319,2]
[408499980,1773766242462,-3756.0,0.00016319,2]
[408499982,1773766242472,-414.0,0.00016319,2]
[408499983,1773766242482,-166.66,0.00016354,2]
[408499985,1773766242492,-403.90095964,0.00016379,2]
[408499986,1773766242501,-160.45,0.00016438,2]
[408499987,1773766242511,-500.0,0.00016438,2]
[408499988,1773766242521,-500.0,0.00016438,2]
[408499990,1773766242531,-500.0,0.00016438,2]
[408499992,1773766242540,-500.0,0.00016438,2]
[408499995,1773766242550,-500.0,0.00016438,2]
[408499998,1773766242736,-5845.32104005,0.00016442,2]
[408499999,1773766242746,-9765.61791208,0.00016466,2]
[408500000,1773766242756,-380.0,0.00016493,2]
[408500001,1773766242765,-2000.0,0.00016516,2]
[408500002,1773766242775,-736.0,0.0001655,2]
[408500003,1773766242784,-503.38689144,0.00016648,2]
[408500004,1773766242794,-256.17784,0.0001666,7]
[408500005,1773766242804,-160.0,0.0001666,7]
[408500006,1773766242813,-297.038267,0.0001666,7]
[408500007,1773766242823,-434.076534,0.0001666,7]
[408500008,1773766242832,-353.965013,0.0001666,7]
[408500009,1773766242842,-304.672922,0.0001666,7]
[408500010,1773766242851,-196.910387,0.0001666,7]
[408500011,1773766242861,-161.0,0.0001672,2]
[408500012,1773766242870,-1557.9,0.00016805,2]
[408500014,1773766242879,-5845.32104005,0.00016806,2]
[408500016,1773766242889,-9765.61791208,0.00016824,2]
[408500017,1773766242898,-500.0,0.00016999,2]
[408500019,1773766242907,-300.0,0.00016999,2]
[408500021,1773766242917,-300.0,0.00016999,2]
[408500023,1773766242927,-300.0,0.00016999,2]
[408500025,1773766242937,-265180.9882292,0.00017,5]
[408500026,1773766242947,-300.0,0.00017,2]
[408500027,1773766242956,-161.0,0.0001704,2]
[408500028,1773766242966,-500.0,0.00017064,2]
[408500029,1773766242977,-823.0,0.00017096,2]
[408500030,1773766242987,-5845.32104005,0.00017171,2]
[408500031,1773766242997,-9765.61791208,0.00017183,2]
[408500032,1773766243007,-184.01178514,0.00017211,5]
[408500033,1773766243021,-3292.0,0.0001725,2]
[408500034,1773766243031,-403.90095964,0.0001726,2]
[408500036,1773766243042,-160.0,0.00017287,7]
[408500037,1773766243052,-170.950143,0.00017287,7]
[408500038,1773766243062,-181.900287,0.00017287,7]
[408500039,1773766243074,-789.24254081,0.0001735,2]
[408500040,1773766243085,-2685.58,0.00017364,2]
[408500041,1773766243096,-5845.32104005,0.00017535,2]
[408500042,1773766243105,-9765.61791208,0.00017541,2]
[408500043,1773766243116,-600.0,0.00017552,2]
[408500044,1773766243126,-1538.0,0.0001768,2]
[408500045,1773766243135,-500.0,0.00017711,2]
[408500046,1773766243146,-750.0,0.00017711,2]
[408500047,1773766243156,-500.0,0.00017711,2]
[408500048,1773766243166,-250.0,0.00017711,2]
[408500049,1773766243176,-500.0,0.00017711,2]
[408500050,1773766243186,-500.0,0.00017711,2]
[408500051,1773766243197,-250.0,0.00017711,2]
[408500052,1773766243207,-500.0,0.00017711,2]
[408500053,1773766243217,-250.0,0.00017711,2]
[408500054,1773766243227,-500.0,0.00017711,2]
[408500055,1773766243246,-250.0,0.00017711,2]
[408500056,1773766243266,-500.0,0.00017711,2]
[408500057,1773766243277,-250.0,0.00017711,2]
[408500058,1773766243286,-500.0,0.00017711,2]
[408500059,1773766243296,-250.0,0.00017711,2]
[408500060,1773766243306,-500.0,0.00017711,2]
[408500061,1773766243315,-250.0,0.00017711,2]
[408500062,1773766243325,-500.0,0.00017711,2]
[408500063,1773766243335,-250.0,0.00017711,2]
[408500064,1773766243344,-500.0,0.00017711,2]
[408500065,1773766243353,-250.0,0.00017711,2]
[408500066,1773766243363,-500.0,0.00017711,2]
[408500067,1773766243373,-250.0,0.00017711,2]
[408500068,1773766243386,-500.0,0.00017711,2]
[408500069,1773766243396,-250.0,0.00017711,2]
[408500070,1773766243410,-250.0,0.00017711,2]
[408500071,1773766243421,-500.0,0.00017711,2]
[408500072,1773766243431,-399.80320651,0.00017711,2]
[408500073,1773766243441,-500.0,0.00017732,2]
[408500074,1773766243451,-500.0,0.00017787,2]
[408500075,1773766243461,-500.0,0.00017788,2]
[408500076,1773766243471,-1100.0,0.000178,6]
[408500077,1773766243481,-671.4,0.00017802,2]
[408500078,1773766243491,-500.0,0.00017805,2]
[408500079,1773766243500,-800.0,0.00017808,2]
[408500080,1773766243510,-500.0,0.00017822,2]
[408500081,1773766243521,-13254.06927392,0.000179,2]
[408500082,1773766243532,-10000.0,0.000179,2]
[408500083,1773766243542,-5845.32104005,0.000179,2]
[408500084,1773766243552,-200.0,0.000179,6]
[408500085,1773766243562,-9765.61791208,0.000179,2]
[408500086,1773766243572,-1252.0,0.00017963,2]
[408500087,1773766243582,-400.0,0.0001797,2]
[408500088,1773766243592,-400.0,0.0001797,2]
[408500089,1773766243603,-400.0,0.0001797,2]
[408500090,1773766243613,-451.15996436,0.0001797,2]
[408500091,1773766243623,-400.0,0.0001797,2]
[408500092,1773766243633,-1061.74023569,0.0001799,2]
[408500093,1773766243643,-1061.74023569,0.0001799,2]
[408500094,1773766243653,-151.0,0.00017995,2]
[408500095,1773766243663,-151.0,0.00017997,2]
[408500096,1773766243672,-300.0,0.00017997,2]
[408500097,1773766243682,-27295.8877314,0.00017998,2]
[408500098,1773766243692,-5376.0672057,0.00017998,2]
[408500099,1773766243703,-332.2748341,0.00017998,2]
[408500100,1773766243712,-106861.6489588,0.00017998,2]
[408500101,1773766243723,-11365.4396718,0.00017998,2]
[408500102,1773766243733,-250731.8544993,0.00017998,2]
[408500103,1773766243743,-123005.3155289,0.00017998,2]
[408500104,1773766243753,-2223.8105831,0.00017998,2]
[408500105,1773766243766,-151.0,0.00017998,2]
[408500106,1773766243776,-151.0,0.00017998,2]
[408500107,1773766243786,-199.08733,0.00017998,2]
[408500108,1773766243796,-199.08733,0.00017998,2]
[408500109,1773766243807,-199.08733,0.00017998,2]
[408500110,1773766243817,-199.08733,0.00017998,2]
[408500111,1773766243826,-151.0,0.00017998,2]
[408500112,1773766243836,-151.0,0.00017998,2]
[408500113,1773766243846,-186.078238,0.00017998,2]
[408500114,1773766243856,-151.0,0.00017998,2]
[408500115,1773766243866,-151.0,0.00017998,2]
[408500116,1773766243876,-151.0,0.00017998,2]
[408500117,1773766243887,-6609.30955,0.00017998,2]
[408500118,1773766243897,-5000.0,0.00017998,2]
[408500119,1773766243906,-5000.0,0.00017998,2]
[408500120,1773766243917,-5000.0,0.00017998,2]
[408500121,1773766243927,-5000.0,0.00017998,2]
[408500122,1773766243937,-5000.0,0.00017998,2]
[408500123,1773766243946,-5000.0,0.00017998,2]
[408500124,1773766243955,-151.0,0.00017998,2]
[408500125,1773766243968,-155.0,0.00017999,2]
[408500126,1773766243978,-500.0,0.00017999,2]
[408500127,1773766243989,-500.0,0.00017999,2]
[408500128,1773766243999,-500.0,0.00017999,2]
[408500129,1773766244009,-500.0,0.00017999,2]
[408500130,1773766244018,-500.0,0.00017999,2]
[408500131,1773766244028,-500.0,0.00017999,2]
[408500132,1773766244037,-500.0,0.00017999,2]
[408500133,1773766244047,-500.0,0.00017999,2]
[408500134,1773766244056,-500.0,0.00017999,2]
[408500135,1773766244071,-500.0,0.00017999,2]
[408500136,1773766244080,-500.0,0.00017999,2]
[408500137,1773766244091,-500.0,0.00017999,2]
[408500138,1773766244100,-500.0,0.00017999,2]
[408500139,1773766244111,-492.88905965,0.00017999,2]
[408500140,1773766244121,-300.0,0.00017999,2]
[408500141,1773766244131,-3252682.88975307,0.00018,2]
[408500142,1773766244143,-1198.92491371,0.00018,2]
[408500143,1773766244152,-309.11917608,0.00018,2]
[408500144,1773766244162,-151.0,0.00018,2]
[408500145,1773766244174,-165.930616,0.00018,2]
[408500146,1773766244184,-151.0,0.00018,2]
[408500147,1773766244193,-151.0,0.00018,2]
[408500148,1773766244203,-151.0,0.00018,2]
[408500149,1773766244213,-276.45567888,0.00018,2]
[408500150,1773766244223,-199.08733,0.00018,2]
[408500151,1773766244233,-199.08733,0.00018,2]
[408500152,1773766244243,-199.08733,0.00018,2]
[408500153,1773766244252,-199.08733,0.00018,2]